bitfinex/quotes_SOLUSD_20240717
["timestamp","ask_amount","ask_price","bid_price","bid_amount"]
[1721214462589,6.3438,162.32,162.19,21.8425004]
[1721214462881,1.54069884,162.31,162.19,31.8425004]
[1721214463384,1.54069884,162.31,162.19,21.8425004]
[1721214465082,1.54069884,162.31,162.2,1.23269741]
[1721214465083,29.24,162.3,162.2,1.23269741]
[1721214465268,1.5408227,162.29,162.19,21.8425004]
[1721214466191,1.5408227,162.29,162.2,46.57265757]
[1721214466372,1.5408227,162.29,162.21,1.23248485]
[1721214466373,1.54060607,162.29,162.21,1.23248485]
[1721214466574,1.54061506,162.31,162.22,0.34]
[1721214467072,1.54061506,162.31,162.23,0.17]
[1721214467272,1.54061506,162.31,162.21,0.34]
[1721214469281,29.24,162.3,162.19,6.4433004]
[1721214469588,6.1296,162.28,162.19,6.4433004]
[1721214469796,1.54102266,162.27,162.19,6.4433004]
[1721214469992,1.5410489,162.26,162.19,6.4433004]
[1721214471301,1.5410489,162.26,162.2,1.232917]
[1721214471585,1.5410489,162.26,162.19,6.4433004]
[1721214471792,1.5410489,162.26,162.16,10.0]
[1721214472001,1.5410489,162.26,162.19,6.44594323]
[1721214472205,1.5410489,162.26,162.2,45.17]
[1721214472383,1.5410489,162.26,162.2,45.0]
[1721214473285,1.5410489,162.26,162.21,1.23278737]
[1721214474066,1.5410489,162.26,162.2,45.0]
[1721214475181,1.5410489,162.26,162.21,1.23277965]
[1721214475798,1.54097085,162.27,162.2,45.0]
[1721214475990,6.1296,162.28,162.21,1.26460482]
[1721214477198,1.5406401,162.32,162.21,11.26460482]
[1721214477386,28.0687401,162.32,162.22,61.4705]
[1721214477593,28.0687401,162.32,162.23,1.57234648]
[1721214477901,28.0687401,162.32,162.24,1.23233579]
[1721214478081,28.0687401,162.32,162.25,0.34]
[1721214478289,6.5281,162.32,162.26,1.23229314]
[1721214478488,6.5281,162.32,162.27,1.40219849]
[1721214478797,6.5281,162.32,162.27,1.23219849]
[1721214479383,6.5281,162.32,162.28,0.17]
[1721214479603,6.5281,162.32,162.25,0.34]
[1721214479901,6.5281,162.32,162.25,0.17]
[1721214480489,6.5281,162.32,162.25,1.40216988]
[1721214480676,6.5281,162.32,162.26,0.17]
[1721214481292,6.5281,162.32,162.25,0.34]
[1721214481683,1.54019127,162.31,162.25,0.17]
[1721214482911,6.5281,162.32,162.25,0.17]
[1721214483080,6.5281,162.32,162.25,0.34]
[1721214483281,1.54029778,162.31,162.25,0.34]
[1721214483479,1.54029778,162.31,162.25,0.17]
[1721214483683,30.78029778,162.31,162.22,16.4705]
[1721214483901,30.78029778,162.31,162.21,6.42876624]
[1721214484206,15.0697,162.3,162.21,6.42876624]
[1721214484505,1.5409729,162.29,162.21,6.42876624]
[1721214485080,29.24,162.28,162.21,6.42876624]
[1721214485299,1.54097174,162.27,162.21,6.42876624]
[1721214485488,1.54097174,162.27,162.22,1.23275345]
[1721214485692,1.54097174,162.27,162.21,6.42876624]
[1721214485882,1.54079284,162.29,162.21,6.42876624]
[1721214487708,1.54079284,162.29,162.22,45.0]
[1721214492015,16.61033916,162.3,162.23,1.40251133]
[1721214492201,1.54056495,162.29,162.23,0.17]
[1721214492688,1.54056495,162.29,162.23,1.57256087]
[1721214492890,16.61040109,162.3,162.23,1.57256087]
[1721214493213,1.54070109,162.3,162.23,0.34]
[1721214494115,1.54049088,162.31,162.23,0.34]
[1721214494314,1.54049088,162.31,162.24,1.23236784]
[1721214494504,1.54049088,162.31,162.25,0.17]
[1721214495395,8.06851763,162.32,162.25,1.40239695]
[1721214495719,6.5281,162.32,162.26,0.17]
[1721214497913,35.7877,162.37,162.26,15.7045]
[1721214498110,1.54005571,162.36,162.27,45.17]
[1721214498311,35.7877,162.37,162.28,0.17]
[1721214498312,1.54009374,162.35,162.28,0.17]
[1721214499319,1.54002926,162.36,162.28,0.17]
[1721214499512,6.6417,162.4,162.28,10.17]
[1721214499816,6.6417,162.4,162.3,10.0]
[1721214500019,6.6417,162.4,162.31,45.34]
[1721214500020,1.53964402,162.39,162.31,45.34]
[1721214500220,1.53964402,162.39,162.32,45.0]
[1721214500519,1.53964402,162.39,162.33,1.23195328]
[1721214500724,1.53964402,162.39,162.31,0.17]
[1721214501019,1.53964402,162.39,162.3,0.34]
[1721214502005,6.6417,162.4,162.31,1.23172484]
[1721214502208,6.6417,162.4,162.32,0.34]
[1721214502506,1.53953252,162.39,162.32,45.34]
[1721214502705,1.53953252,162.39,162.33,45.0]
[1721214502907,1.53969403,162.42,162.34,0.34]
[1721214503129,1.53935996,162.42,162.34,46.57171498]
[1721214503304,1.53936938,162.43,162.34,46.57171498]
[1721214503706,1.53932328,162.42,162.34,45.34]
[1721214503906,1.53932328,162.42,162.34,45.17]
[1721214504410,6.5703,162.44,162.35,1.23160066]
[1721214504626,6.5703,162.44,162.36,0.34]
[1721214504831,1.53918,162.43,162.36,0.34]
[1721214504999,1.53918,162.43,162.36,1.26194663]
[1721214505202,1.53918,162.43,162.36,0.17]
[1721214505398,1.53918,162.43,162.35,0.34]
[1721214505613,1.53933275,162.42,162.35,0.34]
[1721214506022,1.53933275,162.42,162.36,1.23149662]
[1721214506210,1.53933275,162.42,162.37,0.17]
[1721214506413,1.53933275,162.42,162.35,0.34]
[1721214506414,1.53933162,162.43,162.36,1.4014653]
[1721214506629,6.5703,162.44,162.37,0.17]
[1721214506805,6.5703,162.44,162.37,1.4014634]
[1721214507007,1.53932925,162.47,162.38,0.17]
[1721214507305,6.437,162.48,162.39,25.2001]
[1721214507506,6.437,162.48,162.4,46.57097102]
[1721214507705,6.437,162.52,162.4,46.57097102]
[1721214507912,1.53871439,162.51,162.4,46.57097102]
[1721214508435,1.53871439,162.51,162.41,1.23095635]
[1721214508608,1.53871439,162.51,162.42,0.34]
[1721214508809,1.53871439,162.51,162.43,1.23095434]
[1721214509023,6.437,162.52,162.44,0.17]
[1721214509222,20.0,162.51,162.44,0.17]
[1721214510310,6.437,162.52,162.44,0.17]
[1721214510515,6.437,162.52,162.44,46.57067552]
[1721214510836,29.24,162.54,162.44,46.57067552]
[1721214511420,29.24,162.54,162.44,45.34]
[1721214511727,29.24,162.54,162.44,46.57070613]
[1721214511904,29.24,162.54,162.44,45.34]
[1721214512303,29.24,162.54,162.45,1.23067595]
[1721214512537,29.24,162.54,162.46,0.34]
[1721214512707,29.24,162.54,162.46,0.17]
[1721214513218,29.24,162.54,162.45,0.17]
[1721214513413,29.24,162.54,162.45,0.34]
[1721214514210,29.24,162.54,162.45,0.17]
[1721214514726,29.24,162.54,162.45,0.34]
[1721214514936,29.24,162.54,162.45,1.57084102]
[1721214515106,6.3073,162.56,162.46,15.1916]
[1721214515311,20.0,162.55,162.47,46.40067595]
[1721214515506,20.0,162.55,162.47,45.17]
[1721214515719,20.0,162.55,162.48,1.23067591]
[1721214516144,20.0,162.55,162.49,1.2306759]
[1721214516523,29.24,162.54,162.42,16.1671]
[1721214517029,29.24,162.51,162.42,16.1671]
[1721214517226,29.24,162.51,162.43,1.23103249]
[1721214517531,29.24,162.54,162.44,1.23087819]
[1721214517730,20.0,162.53,162.44,1.23087819]
[1721214518034,20.0,162.53,162.42,16.1671]
[1721214518234,20.0,162.53,162.43,45.34]
[1721214518415,20.0,162.53,162.44,1.23082227]
[1721214518616,20.0,162.53,162.45,0.17]
[1721214518818,20.0,162.53,162.43,45.17]
[1721214519018,29.24,162.51,162.42,16.1671]
[1721214520039,29.24,162.48,162.42,16.1671]
[1721214520739,29.24,162.48,162.43,1.23104144]
[1721214520941,29.24,162.48,162.42,16.1671]
[1721214521234,29.24,162.48,162.43,0.17]
[1721214522136,29.24,162.48,162.43,1.40104176]
[1721214522647,29.24,162.48,162.43,0.17]
[1721214523145,29.24,162.48,162.43,45.17]
[1721214523438,29.24,162.48,162.44,1.23098853]
[1721214524628,29.24,162.51,162.45,0.17]
[1721214524829,29.24,162.54,162.44,0.17]
[1721214525032,41.50301221,162.56,162.43,45.17]
[1721214525033,29.24,162.5,162.43,45.17]
[1721214526321,29.24,162.5,162.44,1.23092331]
[1721214526538,29.24,162.5,162.45,0.17]
[1721214527225,29.24,162.5,162.44,0.34]
[1721214529645,29.24,162.5,162.42,16.1671]
[1721214530231,29.24,162.5,162.43,1.23093581]
[1721214530450,29.24,162.5,162.42,16.1671]
[1721214530627,29.24,162.5,162.43,1.23088943]
[1721214530822,29.24,162.5,162.42,16.1671]
[1721214531029,29.24,162.5,162.43,45.34]
[1721214531420,29.24,162.5,162.43,0.17]
[1721214531626,29.24,162.5,162.43,1.23096916]
[1721214532028,29.24,162.5,162.44,0.17]
[1721214532257,29.24,162.5,162.44,1.40093221]
[1721214533336,29.24,162.5,162.44,0.17]
[1721214534641,29.24,162.5,162.43,46.23096718]
[1721214535650,29.24,162.5,162.43,45.0]
[1721214536656,29.24,162.5,162.43,46.23113325]
[1721214536863,29.24,162.5,162.43,45.0]
[1721214537461,29.24,162.47,162.4,6.41877963]
[1721214537761,29.24,162.47,162.41,1.23127671]
[1721214539146,29.24,162.47,162.41,46.23127671]
[1721214539351,29.24,162.47,162.4,6.41877963]
[1721214539858,29.24,162.44,162.4,6.41877963]
[1721214540629,29.24,162.41,162.4,6.41877963]
[1721214541661,29.24,162.41,162.33,15.2041]
[1721214541835,29.24,162.41,162.38,6.42188139]
[1721214542235,29.24,162.41,162.33,15.2041]
[1721214542541,29.24,162.41,162.38,6.42188285]
[1721214542745,29.24,162.41,162.33,15.2041]
[1721214542945,29.24,162.41,162.34,7.65354542]
[1721214543144,29.24,162.41,162.35,45.17]
[1721214544840,35.3586,162.41,162.35,45.0]
[1721214545478,29.24,162.38,162.34,6.42185657]
[1721214547244,29.24,162.38,162.35,45.0]
[1721214548147,29.24,162.38,162.34,6.42185657]
[1721214548475,29.24,162.35,162.34,6.42185657]
[1721214549175,29.24,162.35,162.25,15.4154]
[1721214549338,29.24,162.35,162.32,6.42424606]
[1721214549669,29.24,162.35,162.25,15.4154]
[1721214549844,29.24,162.35,162.3,6.42490118]
[1721214550047,29.24,162.35,162.25,15.4154]
[1721214550243,29.24,162.35,162.3,6.42486368]
[1721214550665,29.24,162.35,162.25,15.4154]
[1721214550862,29.24,162.4,162.3,6.42483445]
[1721214550863,29.24,162.32,162.3,6.42483445]
[1721214551071,29.24,162.32,162.21,21.5736]
[1721214551383,29.24,162.32,162.29,6.42547313]
[1721214551573,29.24,162.32,162.3,45.0]
[1721214551737,29.24,162.32,162.21,21.5736]
[1721214551946,29.24,162.32,162.29,6.42563831]
[1721214552160,29.24,162.32,162.21,15.4154]
[1721214552364,29.24,162.29,162.22,6.4262947]
[1721214553882,29.24,162.29,162.23,45.0]
[1721214554653,29.24,162.29,162.24,1.23255511]
[1721214555078,29.24,162.29,162.23,45.0]
[1721214555948,29.24,162.29,162.24,1.23255581]
[1721214557557,29.24,162.32,162.25,0.34]
[1721214557781,29.24,162.35,162.27,16.4428]
[1721214558084,35.6601,162.38,162.28,46.57195181]
[1721214558281,35.6601,162.38,162.28,56.57195181]
[1721214558577,35.6601,162.38,162.28,46.57195181]
[1721214558759,35.6601,162.38,162.28,55.34]
[1721214559259,29.24,162.41,162.29,1.23180053]
[1721214559460,29.24,162.41,162.28,55.34]
[1721214559461,29.24,162.41,162.3,11.57165883]
[1721214559654,29.24,162.41,162.31,46.57166083]
[1721214560565,29.24,162.41,162.31,51.42]
[1721214560771,29.24,162.41,162.32,25.4298]
[1721214560973,29.24,162.41,162.33,45.34]
[1721214561166,29.24,162.41,162.34,1.23153181]
[1721214561380,29.24,162.41,162.35,0.34]
[1721214561577,29.24,162.41,162.36,0.17]
[1721214561757,29.24,162.44,162.34,11.2315296]
[1721214561960,29.24,162.44,162.35,45.34]
[1721214562156,29.24,162.44,162.36,1.23127962]
[1721214562360,29.24,162.44,162.37,0.34]
[1721214562584,29.24,162.44,162.38,0.17]
[1721214562761,29.24,162.44,162.35,45.34]
[1721214565882,29.24,162.44,162.36,1.23127339]
[1721214566187,29.24,162.47,162.37,15.9973]
[1721214566392,20.0,162.46,162.38,46.23122736]
[1721214566689,20.0,162.46,162.39,0.34]
[1721214566888,20.0,162.46,162.4,1.23122368]
[1721214567084,20.0,162.46,162.41,0.17]
[1721214568077,20.0,162.46,162.4,0.17]
[1721214568281,20.0,162.46,162.39,0.34]
[1721214568589,20.0,162.46,162.39,1.57124177]
[1721214568764,29.24,162.47,162.39,1.57124177]
[1721214569167,29.24,162.47,162.39,0.34]
[1721214572767,29.24,162.47,162.39,0.17]
[1721214572768,29.24,162.44,162.39,0.17]
[1721214572964,29.24,162.44,162.37,15.6573]
[1721214573186,29.24,162.41,162.37,15.6573]
[1721214573390,29.24,162.41,162.33,15.6665]
[1721214575691,29.24,162.41,162.34,45.17]
[1721214575990,29.24,162.41,162.34,45.0]
[1721214576799,6.5425,162.52,162.35,1.23168139]
[1721214577000,29.24,162.47,162.36,1.40126036]
[1721214577175,29.24,162.47,162.36,1.57126036]
[1721214577979,20.0,162.46,162.36,0.34]
[1721214578184,20.0,162.46,162.37,0.34]
[1721214578491,20.0,162.46,162.35,0.34]
[1721214580094,29.24,162.47,162.36,11.2312458]
[1721214580298,29.24,162.47,162.37,45.34]
[1721214580509,29.24,162.47,162.39,15.9952]
[1721214580676,29.24,162.47,162.4,45.34]
[1721214583482,29.24,162.47,162.4,45.17]
[1721214583786,29.24,162.47,162.4,45.0]
[1721214591797,29.24,162.5,162.41,1.23118839]
[1721214592102,29.24,162.5,162.42,0.34]
[1721214592304,29.24,162.5,162.43,1.2309782]
[1721214593395,29.24,162.5,162.44,0.17]
[1721214593701,29.24,162.5,162.44,1.40092663]
[1721214594893,29.24,162.5,162.44,0.17]
[1721214596225,29.24,162.5,162.43,0.17]
[1721214600227,29.24,162.47,162.39,15.9952]
[1721214601705,29.24,162.44,162.39,15.9952]
[1721214602012,29.24,162.44,162.38,6.40781816]
[1721214603312,29.24,162.44,162.39,45.0]
[1721214603507,29.24,162.47,162.39,45.0]
[1721214603749,20.0,162.46,162.39,45.0]
[1721214605039,29.24,162.44,162.39,45.0]
[1721214606110,20.0,162.46,162.39,45.0]
[1721214606439,20.0,162.47,162.39,45.0]
[1721214607227,20.0,162.47,162.39,46.23140842]
[1721214607431,20.0,162.47,162.4,1.23138599]
[1721214607633,29.24,162.45,162.4,1.23138599]
[1721214607837,29.24,162.45,162.39,45.0]
[1721214608334,14.58,162.4,162.39,45.0]
[1721214610839,14.58,162.41,162.39,46.40145345]
[1721214611025,14.58,162.42,162.4,1.23135484]
[1721214612217,6.78776809,162.54,162.41,15.7566]
[1721214612536,14.58,162.44,162.42,46.57098022]
[1721214612914,14.58,162.45,162.42,46.57098022]
[1721214613116,14.58,162.44,162.42,45.34]
[1721214613339,14.58,162.43,162.42,45.0]
[1721214613528,14.58,162.48,162.42,45.0]
[1721214613714,58.32,162.48,162.42,45.17]
[1721214614540,58.32,162.48,162.42,45.0]
[1721214615335,6.174,162.51,162.42,45.0]
[1721214615528,20.0,162.5,162.42,45.0]
[1721214615737,14.58,162.43,162.42,45.0]
[1721214615941,14.58,162.43,162.42,45.17]
[1721214618842,14.58,162.43,162.42,45.0]
[1721214619337,14.58,162.43,162.41,15.7566]
[1721214619545,14.58,162.42,162.41,15.7566]
[1721214619722,14.58,162.42,162.41,60.7566]
[1721214620424,14.58,162.42,162.4,6.41270797]
[1721214620624,14.58,162.41,162.4,6.41270797]
[1721214622835,14.58,162.41,162.4,51.41270797]
[1721214625153,58.32,162.48,162.4,51.58270797]
[1721214625367,14.58,162.41,162.4,51.58270797]
[1721214626264,14.58,162.43,162.4,51.75270797]
[1721214626455,58.32,162.48,162.4,51.75270797]
[1721214626456,14.58,162.42,162.41,45.0]
[1721214626754,14.58,162.42,162.41,46.23127986]
[1721214627135,14.58,162.44,162.41,46.57118279]
[1721214627340,14.58,162.45,162.42,0.34]
[1721214627538,14.58,162.45,162.42,1.57108091]
[1721214627850,14.58,162.46,162.43,15.8433]
[1721214628026,14.58,162.46,162.44,45.34]
[1721214628223,14.58,162.47,162.44,45.34]
[1721214629243,14.58,162.46,162.44,45.34]
[1721214629558,14.58,162.45,162.44,45.17]
[1721214629739,14.58,162.46,162.44,45.17]
[1721214629928,6.174,162.55,162.44,45.17]
[1721214629929,14.58,162.45,162.44,45.17]
[1721214630554,14.58,162.45,162.44,45.0]
[1721214632244,14.58,162.45,162.43,15.8433]
[1721214632575,14.58,162.44,162.43,15.8433]
[1721214633542,14.58,162.44,162.43,16.0133]
[1721214633772,14.58,162.44,162.43,61.0133]
[1721214634675,14.58,162.44,162.43,60.8433]
[1721214635181,14.58,162.44,162.41,6.41040741]
[1721214635475,14.58,162.42,162.41,6.41040741]
[1721214636865,16.1055,162.49,162.41,6.41040741]
[1721214637052,14.58,162.42,162.41,6.41040741]
[1721214637945,14.58,162.42,162.41,51.41040741]
[1721214638148,14.58,162.42,162.41,51.58040741]
[1721214638373,14.58,162.43,162.41,51.58040741]
[1721214638580,6.5826,162.5,162.42,46.40122763]
[1721214638780,14.58,162.45,162.43,1.23098012]
[1721214639568,14.58,162.44,162.42,45.17]
[1721214639783,14.58,162.43,162.42,45.17]
[1721214639943,14.58,162.43,162.42,45.34]
[1721214640569,14.58,162.44,162.42,45.34]
[1721214641073,14.58,162.48,162.42,45.34]
[1721214641370,14.58,162.43,162.42,45.34]
[1721214641575,5.95632279,162.53,162.42,45.34]
[1721214641745,6.0505,162.54,162.43,0.17]
[1721214641949,14.58,162.46,162.43,0.17]
[1721214643159,14.58,162.45,162.43,0.17]
[1721214644462,14.58,162.46,162.43,0.17]
[1721214644857,6.174,162.53,162.42,45.17]
[1721214644858,14.58,162.45,162.42,45.17]
[1721214645449,14.58,162.46,162.43,0.17]
[1721214645850,14.58,162.45,162.43,0.17]
[1721214647771,14.58,162.45,162.43,1.40105572]
[1721214648468,14.58,162.46,162.43,1.40105572]
[1721214649277,14.58,162.46,162.44,0.17]
[1721214649786,6.0505,162.54,162.44,1.40100679]
[1721214650080,14.58,162.45,162.42,6.41123772]
[1721214650264,14.58,162.48,162.42,6.41123772]
[1721214650265,14.58,162.43,162.42,6.41123772]
[1721214651571,14.58,162.43,162.42,51.58123772]
[1721214652185,14.58,162.43,162.42,6.41123772]
[1721214654256,14.58,162.43,162.35,16.1569]
[1721214654257,14.58,162.43,162.36,1.23151787]
[1721214654452,6.174,162.46,162.4,6.41438246]
[1721214654762,14.58,162.41,162.35,16.1569]
[1721214654969,14.58,162.38,162.35,16.1569]
[1721214655167,14.58,162.38,162.36,6.41428185]
[1721214655367,14.58,162.37,162.36,6.41428185]
[1721214655570,14.58,162.37,162.36,6.58428185]
[1721214655791,14.58,162.37,162.36,51.58428185]
[1721214656372,14.58,162.38,162.36,52.81591921]
[1721214656584,14.58,162.38,162.37,45.0]
[1721214656882,14.58,162.39,162.37,45.17]
[1721214657082,14.58,162.39,162.37,45.0]
[1721214657269,14.58,162.39,162.38,1.23152857]
[1721214657577,14.58,162.39,162.37,45.0]
[1721214657765,14.58,162.38,162.37,45.0]
[1721214657970,14.58,162.38,162.37,45.17]
[1721214658164,14.58,162.39,162.37,45.34]
[1721214658482,14.58,162.4,162.38,0.17]
[1721214658807,14.58,162.39,162.38,0.17]
[1721214660486,14.58,162.39,162.36,6.41428185]
[1721214660659,14.58,162.37,162.36,6.41428185]
[1721214663889,20.0,162.45,162.36,6.58428185]
[1721214663890,14.58,162.39,162.36,6.58428185]
[1721214664185,20.0,162.45,162.36,6.41428185]
[1721214664370,6.0312,162.47,162.37,45.17]
[1721214664371,14.58,162.38,162.37,45.17]
[1721214666264,14.58,162.38,162.36,6.41428185]
[1721214666471,14.58,162.37,162.36,6.41428185]
[1721214666673,14.58,162.37,162.36,51.41428185]
[1721214669005,14.58,162.37,162.36,6.41428185]
[1721214676032,49.16,162.37,162.27,15.0495]
[1721214676205,14.58,162.28,162.27,6.41832621]
[1721214676389,14.58,162.28,162.23,15.0495]
[1721214676789,14.58,162.25,162.23,15.0495]
[1721214677101,14.58,162.25,162.24,6.41933806]
[1721214677716,6.3201,162.33,162.24,6.41933806]
[1721214677910,14.58,162.26,162.24,6.41933806]
[1721214678415,14.58,162.25,162.24,6.41933806]
[1721214679926,14.58,162.25,162.23,15.0495]
[1721214680218,14.58,162.24,162.22,6.41952294]
[1721214680421,14.58,162.23,162.22,6.41952294]
[1721214686349,29.22,162.29,162.19,15.401]
[1721214686502,29.22,162.29,162.2,0.34]
[1721214686705,29.22,162.29,162.21,1.23250813]
[1721214687022,29.22,162.29,162.2,0.34]
[1721214687215,29.22,162.29,162.22,0.17]
[1721214687530,6.3805,162.3,162.22,0.34]
[1721214687735,6.3805,162.3,162.23,0.17]
[1721214687899,6.3805,162.3,162.23,1.40246057]
[1721214688513,6.3805,162.3,162.23,0.17]
[1721214689032,6.3805,162.3,162.23,1.40248354]
[1721214689210,6.3805,162.3,162.23,0.17]
[1721214690032,44.3747,162.32,162.23,1.40248268]
[1721214690250,44.3747,162.32,162.24,0.17]
[1721214690402,44.3747,162.32,162.23,0.17]
[1721214690829,44.3747,162.32,162.23,1.23248605]
[1721214691032,44.3747,162.32,162.2,1.23258619]
[1721214691229,44.3747,162.32,162.21,1.23244532]
[1721214691423,44.3747,162.32,162.19,15.401]
[1721214691723,44.3747,162.32,162.2,10.0]
[1721214691934,29.22,162.32,162.2,10.0]
[1721214692122,29.22,162.32,162.21,45.34]
[1721214693122,29.22,162.32,162.21,0.34]
[1721214693420,29.22,162.32,162.22,45.0]
[1721214693621,29.22,162.32,162.23,0.17]
[1721214693829,29.22,162.32,162.21,0.17]
[1721214694026,29.22,162.32,162.21,0.34]
[1721214694234,29.22,162.32,162.19,15.401]
[1721214694419,29.22,162.29,162.19,15.401]
[1721214694753,20.0,162.28,162.19,15.401]
[1721214696646,20.0,162.28,162.2,0.17]
[1721214696858,20.0,162.28,162.2,45.17]
[1721214697840,29.22,162.26,162.2,45.17]
[1721214698052,29.22,162.26,162.21,1.23279089]
[1721214698255,20.0,162.28,162.21,1.23279089]
[1721214698861,29.22,162.29,162.22,1.23274553]
[1721214699358,29.22,162.29,162.21,0.34]
[1721214700574,29.22,162.32,162.21,10.34]
[1721214700739,29.22,162.32,162.22,45.0]
[1721214701060,29.22,162.32,162.23,0.34]
[1721214701255,29.22,162.32,162.23,0.17]
[1721214701933,29.22,162.29,162.22,45.0]
[1721214703436,29.22,162.29,162.22,46.23259303]
[1721214704441,29.22,162.33,162.23,1.23259048]
[1721214704662,29.22,162.33,162.24,0.34]
[1721214704957,29.22,162.33,162.24,0.17]
[1721214705161,29.22,162.33,162.23,0.34]
[1721214705732,29.22,162.33,162.24,16.1597]
[1721214705955,29.22,162.33,162.25,45.34]
[1721214706267,29.22,162.36,162.25,45.34]
[1721214709959,20.0,162.35,162.24,16.1597]
[1721214710487,20.0,162.35,162.25,1.23230131]
[1721214711076,20.0,162.35,162.24,16.1597]
[1721214711474,20.0,162.35,162.25,45.34]
[1721214714477,20.0,162.35,162.26,1.23216666]
[1721214714680,20.0,162.35,162.27,0.34]
[1721214714885,20.0,162.35,162.27,0.17]
[1721214715256,20.0,162.35,162.26,0.17]
[1721214717191,20.0,162.35,162.26,1.40216827]
[1721214717370,20.0,162.35,162.27,0.17]
[1721214718181,20.0,162.35,162.27,1.23216901]
[1721214718484,20.0,162.35,162.28,1.40216739]
[1721214718790,20.0,162.35,162.26,0.34]
[1721214719584,20.0,162.35,162.27,1.23216931]
[1721214719787,20.0,162.35,162.28,0.17]
[1721214719980,20.0,162.35,162.28,1.40216764]
[1721214720286,14.6,162.3,162.28,0.17]
[1721214720484,21.3012,162.39,162.28,0.17]
[1721214720788,14.6,162.31,162.27,45.17]
[1721214721283,14.6,162.31,162.28,0.17]
[1721214723294,14.6,162.32,162.28,0.17]
[1721214723478,21.3012,162.39,162.28,26.00205291]
[1721214723678,14.6,162.35,162.3,15.3084]
[1721214723893,14.6,162.35,162.31,46.57185869]
[1721214724088,14.6,162.34,162.31,45.34]
[1721214725586,14.6,162.34,162.32,1.23191348]
[1721214725767,14.6,162.34,162.33,0.17]
[1721214725968,14.6,162.34,162.31,45.34]
[1721214726168,14.6,162.34,162.31,45.17]
[1721214726367,14.6,162.34,162.32,1.23194671]
[1721214726791,14.6,162.33,162.32,1.23194671]
[1721214727085,14.6,162.33,162.31,45.17]
[1721214727465,14.6,162.32,162.31,45.17]
[1721214727674,14.6,162.32,162.31,46.40203788]
[1721214727862,14.6,162.33,162.31,46.40203788]
[1721214728489,14.6,162.32,162.26,22.7034526]
[1721214728688,6.2896,162.39,162.26,22.7034526]
[1721214728689,14.6,162.3,162.26,22.7034526]
[1721214729163,14.6,162.29,162.26,22.7034526]
[1721214729363,14.6,162.3,162.26,22.7034526]
[1721214730296,14.6,162.3,162.27,45.17]
[1721214730471,12.4636,162.39,162.26,22.7034526]
[1721214730472,14.6,162.29,162.26,22.7034526]
[1721214730795,14.6,162.28,162.27,1.23234697]
[1721214730974,14.6,162.28,162.26,22.7034526]
[1721214731791,14.6,162.28,162.27,46.23238518]
[1721214731978,14.6,162.28,162.27,45.0]
[1721214732178,14.6,162.28,162.27,46.23238532]
[1721214732866,14.6,162.28,162.27,45.0]
[1721214735503,14.6,162.28,162.22,16.602]